[Event "Israeli Championship 2022"]
[Site "Yosiah Arad"]
[Date "2022.12.05"]
[Round "1.1"]
[White "Nabaty, Tamir"]
[Black "Levin, Guy"]
[Result "1-0"]
[ECO "A05"]
[WhiteElo "2629"]
[BlackElo "2382"]
[Annotator "TA"]
[PlyCount "81"]
[EventDate "2022.12.05"]
[EventType "swiss"]
[EventCountry "ISR"]
[SourceTitle "playchess.com"]
[Source "ChessBase"]
[SourceQuality "1"]
[TimeControl "40/5400+30:1800+30"]

{[%evp 9,80,7,20,7,7,11,19,8,0,1,26,18,18,23,54,43,111,98,99,110,112,58,70,62,65,75,126,124,120,126,125,120,108,128,123,108,81,45,40,35,85,73,73,62,128,114,145,132,139,102,102,101,97,93,99,69,81,92,74,55,125,124,239,239,196,129,928,913,29988,29989,29992,29993,29999]} 1. Nf3 {[%emt 0:00:01]} Nf6 {[%emt 0:00:08]} 2. g3 {[%emt 0:00:15]} b5 {[%emt 0:00:06]} 3. e3 {[%emt 0:00:21]} a6 {[%emt 0:00:26]} 4. a4 {[%emt 0:02:36]} b4 {[%emt 0:00:51]} 5. Bg2 {[%emt 0:00:06]} Bb7 {[%emt 0:00:07] [#]} 6. c4 $146 {[%emt 0:00:49] A05: Réti Opening: 1 Nf3 Nf6.} ({Predecessor:} 6. O-O a5 7. d4 e6 8. c4 d6 9. b3 Nbd7 10. Bb2 Be7 11. Nbd2 O-O 12. Qc2 {0-1 (25) Tologontegin,S (2372)-Bartel,M (2617) Chess.com INT 2022}) 6... bxc3 {[%emt 0:05:34]} 7. bxc3 {[%emt 0:02:15]} e6 {[%emt 0:00:37]} 8. d4 {[%emt 0:01:31] The position is equal.} c5 {[%emt 0:09:01]} 9. Ba3 {[%emt 0:03:34]} cxd4 {[%emt 0:09:19]} 10. Bxf8 {[%emt 0:00:42]} Kxf8 {[%emt 0:00:03]} 11. cxd4 {[%emt 0:08:22]} g5 {[%emt 0:12:07]} 12. O-O {[%emt 0:04:15]} Bxf3 {[%emt 0:04:32]} (12... g4 $14) 13. Qxf3 $16 {[%emt 0:03:39]} (13. Bxf3 d5 $14) 13... d5 {[%emt 0:00:10]} 14. Nd2 {[%emt 0:00:08][%cal Bb1d2,Bd2e4,Be4g5][%mdl 32]} Nc6 {[%emt 0:13:55]} 15. e4 {[%emt 0:03:33]} ({Better is} 15. Rac1 $16 Nb4 16. e4) 15... Nxd4 $14 {[%emt 0:05:19]} 16. Qe3 {[%emt 0:00:10]} dxe4 {[%emt 0:04:05]} 17. Nxe4 {[%emt 0:20:16]} Ng4 {[%emt 0:04:18]} ({Black should try} 17... Nxe4 18. Qxe4 Ra7) 18. Qd2 $16 {[%emt 0:08:53] Strongly threatening Rad1.} ({Don't play} 18. Qxg5 Qxg5 19. Nxg5 Rd8 $14) 18... Rc8 {[%emt 0:07:14]} 19. Rad1 {[%emt 0:03:54]} ({But not} 19. Qxg5 $6 Qxg5 20. Nxg5 Kg7 $11) ({Reject} 19. Nxg5 $6 Rc2 20. Qb4+ Kg7 $11) 19... e5 {[%emt 0:00:34]} 20. h3 {[%emt 0:01:16]} Nh6 {[%emt 0:06:24]} 21. Nxg5 {[%emt 0:08:22][%cal Og5e6]} Kg7 {[%emt 0:00:08]} 22. Qe3 {[%emt 0:03:26]} Re8 {[%emt 0:02:06]} 23. Nf3 {[%emt 0:06:04]} (23. g4 {keeps more tension.} Rc3 24. Qd2 Rc2 25. Qxc2 Nxc2 26. Rxd8 Rxd8 27. Rc1) 23... Nhf5 {[%emt 0:01:01]} 24. Qe4 {[%emt 0:00:40]} Nxf3+ {[%emt 0:01:08]} (24... Qd6 $14) 25. Qxf3 {[%emt 0:02:28]} (25. Bxf3 {with more complications.} Nd4 26. Qg4+ Kh8 27. Be4) 25... Qf6 {[%emt 0:02:54]} 26. Qg4+ {[%emt 0:02:44]} Kh8 {[%emt 0:00:03]} (26... Qg6 $14) 27. Rd7 {[%emt 0:01:21]} Rcd8 {[%emt 0:02:04] [#]} 28. Rxd8 {[%emt 0:01:40] White has more active pieces.} Rxd8 {[%emt 0:00:06]} 29. Be4 {[%emt 0:00:31]} Nd6 {[%emt 0:01:12]} 30. Bd3 {[%emt 0:00:45]} Rg8 {[%emt 0:01:51]} 31. Qe2 $40 {[%emt 0:03:02][%mdl 128] White goes for the king.} a5 {[%emt 0:00:32]} 32. Rd1 {[%emt 0:03:40]} e4 $1 {[%emt 0:01:00]} 33. Bc2 {[%emt 0:00:54]} Qe5 {[%emt 0:00:40]} 34. Kh2 {[%emt 0:00:01]} Rb8 {[%emt 0:02:49] [#]} ({Black should play} 34... Re8 $14) 35. Qd2 $1 {[%emt 0:03:07]} Rb2 {[%emt 0:00:03]} (35... Rc8 $16) 36. Qh6 $1 $18 {[%emt 0:00:20][%cal Rh6f8]} Qe7 {[%emt 0:00:40] Against Qf8+} 37. Rd2 {[%emt 0:02:11]} (37. Rxd6 $18 {[%cal Oc2e4] aiming for Bxe4!} Rxc2 38. Ra6) 37... f5 {[%emt 0:02:08][%mdl 8192] Black cannot hold the game after this.} (37... f6 $16) 38. Rxd6 {[%emt 0:00:21][%cal Od6d7] White threatens Rd7! and mate.} Rxc2 {[%emt 0:00:02] [#]} 39. Rd7 $3 {[%emt 0:00:22][%mdl 512] White mates.} Rxf2+ {[%emt 0:01:14]} (39... Rc6 40. Qxc6) 40. Kg1 {[%emt 0:00:01]} Qxd7 {[%emt 0:00:15]} 41. Qf8# {[%emt 0:30:06] Weighted Error Value: White=0.09 (flawless) /Black=0.28 (precise)} 1-0

[Event "Israeli Championship 2022"]
[Site "Yosiah Arad"]
[Date "2022.12.05"]
[Round "1.2"]
[White "Aizenberg, Benny"]
[Black "Postny, Evgeny"]
[Result "0-1"]
[ECO "B11"]
[WhiteElo "2375"]
[BlackElo "2588"]
[Annotator "TA"]
[PlyCount "100"]
[EventDate "2022.12.05"]
[EventType "swiss"]
[EventCountry "ISR"]
[SourceTitle "playchess.com"]
[Source "ChessBase"]
[SourceQuality "1"]
[TimeControl "40/5400+30:1800+30"]

{[%evp 10,100,25,22,27,10,38,38,38,38,45,39,44,43,45,31,33,18,25,10,40,35,28,15,9,0,10,-11,0,-25,0,-12,0,-43,-47,-49,-45,-106,-32,-31,-31,-23,-30,-26,-13,-18,-19,-19,-6,-28,-26,-41,-29,-50,-43,-148,-143,-141,-152,-186,-195,-212,-178,-227,-231,-347,-336,-439,-433,-405,-397,-449,-467,-456,-437,-1318,-1295,-29983,-29984,-29984,-29985,-29984,-29985,-29977,-29978,-29978,-29979,-29990,-29991,-29991,-29992,-29993,-29994]} 1. e4 {[%emt 0:00:02]} c6 {[%emt 0:00:10]} 2. Nf3 {[%emt 0:00:04]} d5 {[%emt 0:00:07]} 3. Nc3 {[%emt 0:00:03]} dxe4 {[%emt 0:01:06]} 4. Nxe4 {[%emt 0:00:02]} Nf6 {[%emt 0:00:05]} 5. Qe2 {[%emt 0:00:07]} Nxe4 {[%emt 0:00:08]} 6. Qxe4 {[%emt 0:00:03]} Qa5 {[%emt 0:00:06] B11: Caro-Kann: Two Knights Variation.} 7. b4 {[%emt 0:00:07]} Qf5 {[%emt 0:02:34]} 8. Qe3 {[%emt 0:00:11]} Qe6 {[%emt 0:00:43] White is slightly better.} 9. Be2 {[%emt 0:00:47]} Qxe3 {[%emt 0:00:14]} 10. fxe3 {[%emt 0:00:03]} Bf5 {[%emt 0:01:16]} 11. d3 {[%emt 0:00:41]} e6 {[%emt 0:03:29] [#]} 12. a3 $146 {[%emt 0:05:17]} ({Predecessor:} 12. Bd2 Na6 13. a3 Nc7 14. O-O Be7 15. Bc3 Rg8 16. Be5 O-O-O 17. h3 f6 18. Bb2 {1-0 (56) Zelbel,P (2448)-Svane,R (2613) Magdeburg 2020}) 12... Be7 {[%emt 0:02:18]} 13. O-O {[%emt 0:03:51]} Nd7 {[%emt 0:01:38]} 14. Rb1 {[%emt 0:04:53]} a6 {[%emt 0:07:53]} 15. Bd2 {[%emt 0:09:02]} O-O {[%emt 0:03:45]} 16. Nd4 {[%emt 0:03:00][%cal Bf3d4,Bd4b3,Bb3a5][%mdl 32]} Bg6 {[%emt 0:00:08]} 17. Nb3 {[%emt 0:00:03]} Rfc8 {[%emt 0:05:21]} 18. Na5 {[%emt 0:03:46]} b6 {[%emt 0:05:19][%cal Bb7b6,Bb6b5][%mdl 32]} 19. Nc4 {[%emt 0:00:19]} Ra7 {[%emt 0:02:30]} 20. Rfc1 {[%emt 0:05:58]} Rac7 {[%emt 0:10:15]} 21. d4 {[%emt 0:09:27]} b5 {[%emt 0:09:37]} 22. Na5 {[%emt 0:00:08]} e5 {[%emt 0:00:14]} 23. Bg4 {[%emt 0:03:27]} (23. Bd3 $15) 23... f5 {[%emt 0:04:39]} (23... Bg5 $17 {...exd4 is the strong threat.} 24. Nb3 Rd8 25. Bxd7 Rcxd7) 24. Bf3 $15 {[%emt 0:01:31]} Bf6 {[%emt 0:00:39]} 25. c3 {[%emt 0:03:13]} Bf7 {[%emt 0:08:13]} 26. Rf1 {[%emt 0:02:53]} g6 {[%emt 0:06:53]} 27. Be1 {[%emt 0:03:26]} Bd5 {[%emt 0:01:20]} 28. Bg3 {[%emt 0:01:42]} Re8 {[%emt 0:03:41]} 29. Rbe1 {[%emt 0:03:20]} Bxf3 {[%emt 0:09:26]} 30. Rxf3 {[%emt 0:00:10]} Rcc8 {[%emt 0:01:43]} 31. Rd1 {[%emt 0:02:28]} Bg5 {[%emt 0:04:32] Threatens to win with ...e4.} 32. dxe5 {[%emt 0:02:01] Black continues to play with concentration.} (32. Re1 $1 $15) 32... Nxe5 $17 {[%emt 0:00:05]} 33. Bxe5 {[%emt 0:00:07]} Rxe5 {[%emt 0:00:06]} 34. Rd3 {[%emt 0:01:04]} c5 {[%emt 0:00:32][%cal Bc6c5,Bc5c4][%mdl 32]} 35. Kf2 {[%emt 0:04:37]} c4 {[%emt 0:00:45]} 36. Rd6 {[%emt 0:01:14]} (36. Rd2 $142) 36... Rce8 $19 {[%emt 0:00:12]} 37. Rxa6 {[%emt 0:00:20]} (37. Nc6 $142 Bxe3+ 38. Kf1) 37... Bxe3+ {[%emt 0:00:44]} (37... Rxe3 38. Rxe3 Rxe3 39. Rb6 $15) 38. Kg3 {[%emt 0:00:08][%cal Oa3a4]} f4+ {[%emt 0:02:32]} 39. Kg4 {[%emt 0:00:36][%cal Oa3a4]} h5+ {[%emt 0:01:29]} 40. Kh4 {[%emt 0:00:55]} Kg7 {[%emt 0:00:36] [#] Strongly threatening ...g5+.} 41. g3 {[%emt 0:31:08]} Bd2 {[%emt 0:17:17]} (41... g5+ 42. Kxh5 Rh8+ 43. Kg4 $11) 42. a4 {[%emt 0:00:00]} (42. gxf4 $142 Bxf4 43. Rxf4 (43. Ra7+ $2 Kh6 $19) 43... g5+ 44. Kg3 gxf4+ 45. Kxf4) 42... Re2 {[%emt 0:02:17]} (42... bxa4 43. Nxc4 (43. gxf4 $2 Bxf4 44. Rxf4 g5+ 45. Kxh5 Rh8+ 46. Kg4 Rh4+ 47. Kg3 Rxf4 $19) 43... Rd5 44. Nxd2 (44. gxf4 Bxf4 45. Rxf4 g5+ 46. Kg3 gxf4+ 47. Kxf4 Rd3 $17) (44. Rxa4 Re2 $15) 44... Rxd2 45. gxf4 $11) 43. gxf4 {[%emt 0:00:00]} Rxh2+ {[%emt 0:00:21] Black mates.} 44. Kg3 {[%emt 0:00:00]} Ree2 {[%emt 0:00:12][%csl Gh2][%cal Re2g2]} 45. Rf1 {[%emt 0:00:00]} h4+ {[%emt 0:06:07][%cal Bh5h4,Bh4h3,Bh3g2][%mdl 32]} 46. Kg4 {[%emt 0:00:00]} Re3 {[%emt 0:02:20][%csl Gh4][%cal Re3g3]} 47. Rg1 {[%emt 0:00:00]} h3 {[%emt 0:01:10]} (47... Bxc3 48. axb5 h3 49. Kg5 $15 (49. Nxc4 $2 Rg2+ 50. Rxg2 hxg2 $19)) 48. Kg5 {[%emt 0:00:00]} Rg2+ {[%emt 0:01:55]} ({Stronger than} 48... Bxc3 49. axb5 (49. Rxg6+ Kf7 $17) 49... Rf2 50. Rxg6+ Kf7 51. Nxc4 $17) 49. Rxg2 {[%emt 0:00:00]} Re5+ {[%emt 0:00:16]} ({Inferior is} 49... hxg2 50. Rxg6+ Kf8 51. Kf5 $17) 50. Kh4 {[%emt 0:00:00]} hxg2 {[%emt 0:00:08] Weighted Error Value: White=0.42/Black=0.05 (flawless)} 0-1

[Event "Israeli Championship 2022"]
[Site "Yosiah Arad"]
[Date "2022.12.05"]
[Round "1.3"]
[White "Kobo, Ori"]
[Black "Iliaguev, Nisim"]
[Result "1/2-1/2"]
[ECO "D77"]
[WhiteElo "2554"]
[BlackElo "2364"]
[Annotator "TA"]
[PlyCount "128"]
[EventDate "2022.12.05"]
[EventType "swiss"]
[EventCountry "ISR"]
[SourceTitle "playchess.com"]
[Source "ChessBase"]
[SourceQuality "1"]
[TimeControl "40/5400+30:1800+30"]

{[%evp 16,128,51,5,58,52,64,64,62,56,69,62,55,53,93,77,84,85,113,108,115,118,121,120,113,101,102,102,119,103,147,77,80,79,80,77,92,77,77,77,77,77,77,77,84,84,84,84,84,59,64,59,64,22,38,5,8,0,12,8,41,41,41,41,41,21,21,21,21,0,8,0,36,0,0,0,0,0,0,0,8,8,8,0,0,0,0,0,0,0,8,0,0,0,8,0,0,0,0,0,0,0,0,-13,0,0,0,0,0,0,0,0,0,0,0]} 1. Nf3 {[%emt 0:00:19]} d5 {[%emt 0:00:26]} 2. g3 {[%emt 0:00:38]} Nf6 {[%emt 0:00:30]} 3. Bg2 {[%emt 0:00:14]} g6 {[%emt 0:00:31]} 4. c4 {[%emt 0:02:13]} Bg7 {[%emt 0:03:12]} 5. d4 {[%emt 0:07:32]} dxc4 {[%emt 0:02:45]} 6. O-O {[%emt 0:01:39]} O-O {[%emt 0:00:12]} 7. Na3 {[%emt 0:00:14]} c3 {[%emt 0:02:02]} 8. bxc3 {[%emt 0:00:10]} c5 {[%emt 0:00:24]} 9. Ne5 {[%emt 0:03:57]} (9. dxc5 Ne4 $11) (9. Re1 $14) 9... Na6 {[%emt 0:08:18] [#] D77: Fianchetto Grünfeld: 6 0-0: Replies other than 6...c6.} (9... Nc6 $11) 10. Rb1 $146 {[%emt 0:11:29]} ({Predecessor:} 10. e3 Nd5 11. Bb2 Nb6 12. f4 Rb8 13. Qe2 Na4 14. Rad1 Nxb2 15. Qxb2 cxd4 16. cxd4 Be6 17. Rc1 {0-1 (63) Voinov,A (2421)-Smirnov,P (2613) Tomsk 2006}) 10... Nd5 {[%emt 0:03:57]} 11. Bd2 {[%emt 0:01:49]} (11. Bb2 {simplifies} Bxe5 12. dxe5 Be6 13. Qc1) 11... Nb6 {[%emt 0:11:02] White is slightly better.} 12. Nb5 {[%emt 0:13:46]} Nc7 {[%emt 0:03:54]} 13. Nxc7 {[%emt 0:05:17]} Qxc7 {[%emt 0:00:02]} 14. Bf4 {[%emt 0:00:27][%cal Oe5g6]} cxd4 {[%emt 0:06:37]} 15. cxd4 {[%emt 0:05:06][%cal Oe5g6] [#] aiming for Nxg6!} (15. Nxg6 e5 16. Nxf8 exf4 17. cxd4 fxg3 $11) 15... Qd8 {[%emt 0:05:20]} 16. a4 {[%emt 0:00:39]} Nd5 {[%emt 0:04:50] Against a5} 17. Bd2 $36 {[%emt 0:00:40][%mdl 2048] Inhibits Nc3. White is on the roll.} a5 {[%emt 0:08:05]} 18. Qb3 {[%emt 0:08:50]} Nb4 {[%emt 0:16:25]} 19. Bxb4 {[%emt 0:00:44]} axb4 {[%emt 0:00:01]} 20. Qxb4 {[%emt 0:00:30]} Bxe5 {[%emt 0:08:16]} 21. dxe5 {[%emt 0:00:15]} Qc7 {[%emt 0:00:08]} 22. f4 {[%emt 0:12:16]} (22. Bxb7 Rb8 23. Rfc1 Qxb7 24. Qxb7 Bxb7 $17) 22... Qc2 {[%emt 0:01:45]} 23. Rb2 {[%emt 0:08:14]} ({Don't do} 23. Bxb7 Rxa4 24. Qb3 (24. Qxe7 Qxe2 25. Rfe1 Qc4 $16) 24... Qc5+ 25. Kg2 Bxb7+ 26. Qxb7 Ra2 $14) (23. Bf3 $142) 23... Qxa4 $16 {[%emt 0:03:28]} 24. Qxa4 {[%emt 0:00:31]} (24. Bxb7 $2 {perishes.} Qa7+ 25. Qb6 Bxb7 $19) 24... Rxa4 {[%emt 0:00:01]} 25. Rc1 {[%emt 0:02:40]} b5 {[%emt 0:04:04]} 26. Rc7 {[%emt 0:05:07]} b4 {[%emt 0:02:38]} 27. Bd5 {[%emt 0:02:59]} ({Of course not} 27. Rxe7 Be6 $11) 27... e6 {[%emt 0:01:37]} 28. Bc6 {[%emt 0:05:33] White has more active pieces.} Ra1+ {[%emt 0:02:22]} 29. Kf2 {[%emt 0:00:01]} Rc1 {[%emt 0:01:18]} 30. Rxb4 {[%emt 0:00:03]} Bd7 {[%emt 0:00:38][%mdl 64] [#]} 31. Rxd7 {[%emt 0:00:11]} Rxc6 {[%emt 0:00:01][%mdl 4096] Endgame KRR-KRR} 32. g4 {[%emt 0:01:20]} Rc5 {[%emt 0:00:42]} 33. Rbb7 {[%emt 0:00:45]} Ra5 {[%emt 0:00:33]} 34. h4 {[%emt 0:00:40]} Ra4 {[%emt 0:00:47]} 35. Kf3 {[%emt 0:00:16]} Ra1 {[%emt 0:00:21] Against Rd1} 36. Kg2 {[%emt 0:00:37]} Re1 {[%emt 0:00:34]} 37. Rd2 {[%emt 0:00:42]} Rc8 {[%emt 0:00:29]} 38. h5 {[%emt 0:00:19]} gxh5 {[%emt 0:00:36]} 39. gxh5 {[%emt 0:00:02]} Kg7 {[%emt 0:00:32] Against h6+} 40. f5 {[%emt 0:01:10]} exf5 {[%emt 0:00:32]} 41. e6 {[%emt 0:06:13]} Kf6 {[%emt 0:14:37]} 42. Kf2 {[%emt 0:10:34]} (42. exf7 {is more complex.} Kg5 43. Kf2 Ra1 44. Rd5) 42... Ra1 {[%emt 0:07:14]} 43. exf7 {[%emt 0:04:07]} Ra6 {[%emt 0:07:46] Inhibits Rd6+.} 44. f8=N {[%emt 0:05:32]} (44. Rb5 {is interesting.} Re6 45. Rc2 Rd8 46. Rd5) 44... Rxf8 {[%emt 0:00:09] The position is equal.} 45. Rxh7 {[%emt 0:00:05]} Kg5 {[%emt 0:01:08] Inhibits Rh6.} 46. Rd1 {[%emt 0:00:27] Rg1+ is the strong threat.} Ra4 {[%emt 0:01:01]} 47. Rd6 {[%emt 0:03:43]} Rf4+ {[%emt 0:00:44]} 48. Ke1 {[%emt 0:00:09]} Rh4 {[%emt 0:01:16]} 49. Rg6+ {[%emt 0:00:53]} Kf4 {[%emt 0:00:04]} 50. Rg2 {[%emt 0:01:44]} Ra8 {[%emt 0:00:40]} 51. Kf2 {[%emt 0:01:35]} Ra3 {[%emt 0:00:35]} 52. h6 {[%emt 0:00:35] Strongly threatening Re7.} Re3 {[%emt 0:00:47] Prevents Re7.} 53. Kf1 {[%emt 0:00:57]} (53. Rf7 {simplifies} Rxh6 54. Rxf5+ Kxf5 55. Kxe3 Re6+ 56. Kf3) 53... Rh1+ {[%emt 0:00:19]} 54. Kf2 {[%emt 0:00:14]} Rh4 {[%emt 0:00:05]} 55. Ke1 {[%emt 0:00:43]} (55. Rf7 {simplifies} Rxh6 56. Rxf5+ Kxf5 57. Kxe3 Re6+ 58. Kf3) 55... Re6 {[%emt 0:00:48]} 56. Rf2+ {[%emt 0:00:27]} Ke4 {[%emt 0:00:41]} 57. Rb7 {[%emt 0:00:31] And now Rb4+ would win.} Rh1+ {[%emt 0:00:24]} 58. Kd2 {[%emt 0:00:13]} Rd6+ {[%emt 0:00:06]} 59. Kc2 {[%emt 0:00:14]} Rc6+ {[%emt 0:00:09]} (59... Ke3 {seems wilder.} 60. Rf3+ Kxe2 61. Rbb3 Rd2+) 60. Kb2 {[%emt 0:00:22] Threatens to win with Re7+.} Rhxh6 {[%emt 0:00:54]} 61. Rb4+ {[%emt 0:00:10]} Ke3 {[%emt 0:00:46]} 62. Rxf5 {[%emt 0:00:11]} Kxe2 {[%emt 0:00:48]} 63. Re5+ {[%emt 0:00:23]} Kf3 {[%emt 0:00:30]} 64. Rf5+ {[%emt 0:00:30]} Ke2 {[%emt 0:00:01] Weighted Error Value: White=0.08 (flawless) /Black=0.08 (flawless)} 1/2-1/2

[Event "Israeli Championship 2022"]
[Site "Yosiah Arad"]
[Date "2022.12.05"]
[Round "1.4"]
[White "Yaniv, Yuval"]
[Black "Boruchovsky, Avital"]
[Result "1/2-1/2"]
[ECO "B52"]
[WhiteElo "2343"]
[BlackElo "2552"]
[Annotator "TA"]
[PlyCount "42"]
[EventDate "2022.12.05"]
[EventType "swiss"]
[EventCountry "ISR"]
[SourceTitle "playchess.com"]
[Source "ChessBase"]
[SourceQuality "1"]
[TimeControl "40/5400+30:1800+30"]

{[%evp 23,42,37,35,35,44,29,31,0,0,0,0,0,0,0,18,23,4,0,0,0,0]} 1. e4 {[%emt 0:00:16]} c5 {[%emt 0:00:07]} 2. Nf3 {[%emt 0:00:28]} d6 {[%emt 0:00:05]} 3. Bb5+ {[%emt 0:00:45]} Bd7 {[%emt 0:00:28]} 4. Bxd7+ {[%emt 0:00:13]} Nxd7 {[%emt 0:00:05]} 5. O-O {[%emt 0:00:41]} Ngf6 {[%emt 0:00:05]} 6. Qe2 {[%emt 0:00:12]} e6 {[%emt 0:01:02]} 7. d4 {[%emt 0:00:19]} cxd4 {[%emt 0:02:29]} 8. Nxd4 {[%emt 0:00:11]} a6 {[%emt 0:06:56]} 9. c4 {[%emt 0:04:02]} Be7 {[%emt 0:08:22]} 10. b3 {[%emt 0:00:28]} O-O {[%emt 0:00:07]} 11. Nc3 {[%emt 0:01:42]} Rc8 {[%emt 0:01:46]} 12. Bb2 {[%emt 0:00:19]} Qa5 {[%emt 0:00:10]} 13. Kh1 {[%emt 0:04:13] B52: Sicilian: Moscow Variation with 3...Bd7.} Rfe8 {[%emt 0:04:01]} 14. f4 {[%emt 0:08:59]} Qh5 {[%emt 0:06:25] [#]} 15. Qe1 $146 {[%emt 0:05:33] White is slightly better.} ({Predecessor:} 15. Nf3 Bd8 16. Rad1 Bc7 17. e5 dxe5 18. g4 Nxg4 19. Rxd7 e4 20. Ng5 e3 21. Rxf7 {1-0 (35) Khubukshanov,E (2373)-Colev,I (2004) Tornelo INT 2021}) 15... Bd8 {[%emt 0:09:11]} 16. Rd1 {[%emt 0:05:51][%cal Ba1d1,Bd1d3,Bd3h3][%mdl 32]} Ba5 $1 {[%emt 0:01:17]} ({Much less strong is} 16... Ng4 17. Nf3 $14) 17. Rd3 {[%emt 0:07:16]} Nc5 {[%emt 0:12:56] Inhibits f5.} ({But not} 17... Ng4 18. Rh3 Qg6 19. Rg3 $16) ({Don't do} 17... Bxc3 18. Bxc3 Qc5 19. Bb4 $14) 18. Rh3 {[%emt 0:01:29]} Qg4 {[%emt 0:10:20][%cal Oc5e4]} 19. Rg3 {[%emt 0:01:30]} Qh5 {[%emt 0:00:01]} 20. Rh3 {[%emt 0:00:20]} Qg4 {[%emt 0:00:05][%cal Oc5e4] And now ...Ncxe4! would win.} 21. Rg3 {[%emt 0:08:13]} Qh5 {[%emt 0:00:23] Weighted Error Value: White=0.06 (flawless) /Black=0.01 (flawless)} 1/2-1/2

[Event "Israeli Championship 2022"]
[Site "Yosiah Arad"]
[Date "2022.12.05"]
[Round "1.5"]
[White "Mikhalevski, Victor"]
[Black "Kochavi, Ori"]
[Result "1/2-1/2"]
[ECO "A25"]
[WhiteElo "2517"]
[BlackElo "2326"]
[Annotator "TA"]
[PlyCount "44"]
[EventDate "2022.12.05"]
[EventType "swiss"]
[EventCountry "ISR"]
[SourceTitle "playchess.com"]
[Source "ChessBase"]
[SourceQuality "1"]
[TimeControl "40/5400+30:1800+30"]

{[%evp 9,44,8,20,13,4,0,0,0,0,0,0,0,0,0,0,0,0,0,0,0,21,-11,-10,-10,-10,-5,-8,-9,-10,-10,0,-4,-5,-20,-18,-18,0]} 1. c4 {[%emt 0:00:07]} e5 {[%emt 0:00:55]} 2. g3 {[%emt 0:00:10]} Nf6 {[%emt 0:00:13]} 3. Bg2 {[%emt 0:00:06]} Nc6 {[%emt 0:00:05]} 4. Nc3 {[%emt 0:00:15]} Bb4 {[%emt 0:01:34]} 5. Nd5 {[%emt 0:02:13]} O-O {[%emt 0:01:25] The position is equal.} 6. Nxb4 {[%emt 0:01:50] A25: English Opening vs King's Indian with ...Nc6 but without early d3.} Nxb4 {[%emt 0:00:03]} 7. d4 {[%emt 0:00:43] 7.a3 is a critical line.} exd4 {[%emt 0:01:34]} 8. a3 $1 {[%emt 0:03:56]} Nc6 {[%emt 0:00:18]} 9. Nf3 {[%emt 0:07:51]} d5 {[%emt 0:14:33]} 10. Nxd4 {[%emt 0:05:36]} dxc4 {[%emt 0:13:55]} 11. Nxc6 {[%emt 0:02:00]} Qxd1+ {[%emt 0:00:59]} 12. Kxd1 {[%emt 0:00:05] [#] aiming for Ne7+.} bxc6 {[%emt 0:00:02] [#]} 13. Bxc6 $146 {[%emt 0:00:07]} ({Predecessor:} 13. Be3 Rd8+ 14. Kc1 Nd5 15. Bc5 Bg4 16. f3 Bh5 17. e4 Nb6 18. g4 Bg6 19. Bf1 {1-0 (62) Giesemann,S-Thomae,E (1839) GER email 2010}) 13... Rb8 {[%emt 0:00:03]} 14. f3 {[%emt 0:01:12]} Be6 {[%emt 0:21:40]} 15. Ba4 {[%emt 0:06:43]} Nd7 {[%emt 0:02:06][%cal Bf6d7,Bd7c5,Bc5b3][%mdl 32]} 16. Bc2 {[%emt 0:10:49]} Nc5 {[%emt 0:07:07]} 17. Ke1 {[%emt 0:16:28]} Nb3 {[%emt 0:00:17]} 18. Bxb3 {[%emt 0:00:04]} Rxb3 {[%emt 0:00:05]} ({Resist} 18... cxb3 19. Be3 $16) 19. Kf2 {[%emt 0:00:06]} Rd8 {[%emt 0:02:03]} 20. g4 {[%emt 0:02:08]} a6 {[%emt 0:05:09]} 21. h4 {[%emt 0:02:06]} h6 {[%emt 0:05:01]} 22. Rg1 {[%emt 0:11:48]} Kf8 {[%emt 0:05:53] An interesting draw.   Weighted Error Value: White=0.04 (flawless) /Black=0.02 (flawless)} 1/2-1/2